[Event "Titled Tuesday Blitz April 25 Early 2023"]
[White "Atakishiyev, Elmar"]
[Black "Bortnyk, Olexandr"]
[WhiteFideId "13410547"]
[BlackFideId "14120828"]
[WhiteElo "2239"]
[BlackElo "2734"]
[Result "1-0"]
[Round "06"]
[TimeControl "180+2"]
[Date "2023.04.25"]
[WhiteClock "0:00:13"]
[BlackClock "0:00:04"]

1. c4 {[%clk 0:02:59]}  d6 {[%clk 0:02:56]} 2. Nc3 {[%clk 0:02:58]}  Nf6 {[%clk 0:02:56]} 3. e4 {[%clk 0:02:56]}  g6 {[%clk 0:02:57]} 4. d4 {[%clk 0:02:56]}  Bg7 {[%clk 0:02:58]} 5. Be2 {[%clk 0:02:54]}  Nbd7 {[%clk 0:02:57]} 6. Bg5 {[%clk 0:02:54]}  h6 {[%clk 0:02:54]} 7. Be3 {[%clk 0:02:54]}  e5 {[%clk 0:02:53]} 8. d5 {[%clk 0:02:35]}  Qe7 {[%clk 0:02:51]} 9. h3 {[%clk 0:02:32]}  c5 {[%clk 0:02:51]} 10. Nf3 {[%clk 0:02:29]}  O-O {[%clk 0:02:50]} 11. Qd2 {[%clk 0:02:29]}  Kh7 {[%clk 0:02:50]} 12. O-O {[%clk 0:02:28]}  Ne8 {[%clk 0:02:49]} 13. Ne1 {[%clk 0:02:24]}  f5 {[%clk 0:02:49]} 14. f3 {[%clk 0:02:23]}  f4 {[%clk 0:02:49]} 15. Bf2 {[%clk 0:02:23]}  Bf6 {[%clk 0:02:46]} 16. a3 {[%clk 0:02:22]}  Bh4 {[%clk 0:02:44]} 17. b4 {[%clk 0:02:19]}  b6 {[%clk 0:02:41]} 18. Nd3 {[%clk 0:02:19]}  Bxf2+ {[%clk 0:02:38]} 19. Rxf2 {[%clk 0:02:19]}  h5 {[%clk 0:02:37]} 20. Rb1 {[%clk 0:02:16]}  Rf7 {[%clk 0:02:22]} 21. bxc5 {[%clk 0:02:15]}  bxc5 {[%clk 0:02:17]} 22. Bd1 {[%clk 0:02:03]}  Nb6 {[%clk 0:02:17]} 23. Qa2 {[%clk 0:01:58]}  Ba6 {[%clk 0:02:11]} 24. Nb5 {[%clk 0:01:57]}  g5 {[%clk 0:02:06]} 25. a4 {[%clk 0:01:56]}  Rg7 {[%clk 0:02:03]} 26. a5 {[%clk 0:01:56]}  Nd7 {[%clk 0:02:03]} 27. Rfb2 {[%clk 0:01:46]}  Ndf6 {[%clk 0:02:00]} 28. Nf2 {[%clk 0:01:45]}  Bc8 {[%clk 0:01:56]} 29. Qa3 {[%clk 0:01:27]}  a6 {[%clk 0:01:38]} 30. Nc3 {[%clk 0:01:23]}  g4 {[%clk 0:01:39]} 31. fxg4 {[%clk 0:01:20]}  hxg4 {[%clk 0:01:40]} 32. hxg4 {[%clk 0:01:20]}  Bxg4 {[%clk 0:01:21]} 33. Bxg4 {[%clk 0:01:19]}  Nxg4 {[%clk 0:01:19]} 34. Nxg4 {[%clk 0:01:20]}  Rxg4 {[%clk 0:01:18]} 35. Nd1 {[%clk 0:01:20]}  Qh4 {[%clk 0:00:58]} 36. Rb7+ {[%clk 0:01:15]}  Kg6 {[%clk 0:00:42]} 37. Nf2 {[%clk 0:01:06]}  Rg3 {[%clk 0:00:42]} 38. R1b3 {[%clk 0:01:04]}  Nf6 {[%clk 0:00:39]} 39. Rxg3+ {[%clk 0:00:44]}  fxg3 {[%clk 0:00:40]} 40. Nh3 {[%clk 0:00:45]}  Nxe4 {[%clk 0:00:25]} 41. Qf3 {[%clk 0:00:45]}  Nf6 {[%clk 0:00:23]} 42. Kh1 {[%clk 0:00:35]}  Rh8 {[%clk 0:00:18]} 43. Rb6 {[%clk 0:00:32]}  Ne4 {[%clk 0:00:09]} 44. Rxa6 {[%clk 0:00:19]}  Nf2+ {[%clk 0:00:03]} 45. Kg1 {[%clk 0:00:20]}  Nxh3+ {[%clk 0:00:04]} 46. gxh3 {[%clk 0:00:20]}  Qd4+ {[%clk 0:00:02]} 47. Kg2 {[%clk 0:00:20]}  Qd2+ {[%clk 0:00:01]} 48. Kxg3 {[%clk 0:00:20]}  Qe1+ {[%clk 0:00:01]} 49. Kh2 {[%clk 0:00:17]}  Qd2+ {[%clk 0:00:01]} 50. Kg3 {[%clk 0:00:17]}  Qg5+ {[%clk 0:00:01]} 51. Kh2 {[%clk 0:00:16]}  Qd2+ {[%clk 0:00:01]} 52. Qg2+ {[%clk 0:00:15]}  Qxg2+ {[%clk 0:00:01]} 53. Kxg2 {[%clk 0:00:16]}  Rd8 {[%clk 0:00:01]} 54. Rb6 {[%clk 0:00:16]}  Kf5 {[%clk 0:00:01]} 55. a6 {[%clk 0:00:17]}  e4 {[%clk 0:00:02]} 56. a7 {[%clk 0:00:17]}  Ra8 {[%clk 0:00:03]} 57. Rb7 {[%clk 0:00:15]}  Ke5 {[%clk 0:00:03]} 58. h4 {[%clk 0:00:16]}  Kd4 {[%clk 0:00:03]} 59. h5 {[%clk 0:00:16]}  Kxc4 {[%clk 0:00:03]} 60. h6 {[%clk 0:00:17]}  e3 {[%clk 0:00:03]} 61. h7 {[%clk 0:00:16]}  Kxd5 {[%clk 0:00:02]} 62. Rb8 {[%clk 0:00:16]}  e2 {[%clk 0:00:02]} 63. Kf2 {[%clk 0:00:15]}  Rxa7 {[%clk 0:00:03]} 64. h8=Q {[%clk 0:00:15]}  Rf7+ {[%clk 0:00:03]} 65. Kxe2 {[%clk 0:00:15]}  Re7+ {[%clk 0:00:03]} 66. Kd2 {[%clk 0:00:16]}  Re5 {[%clk 0:00:03]} 67. Qg8+ {[%clk 0:00:16]}  Kd4 {[%clk 0:00:02]} 68. Rb3 {[%clk 0:00:13]}  c4 {[%clk 0:00:03]} 69. Rf3 {[%clk 0:00:13]}  d5 {[%clk 0:00:03]} 70. Rf4+ {[%clk 0:00:13]}  Kc5 {[%clk 0:00:04]} 71. Qf8+ {[%clk 0:00:12]}  Kc6 {[%clk 0:00:04]} 72. Rf6+ {[%clk 0:00:13]} 1-0


[Site "https://www.chess.com"]

[Event "Titled Tuesday Blitz April 25 Early 2023"]
[White "Postny, Evgeny"]
[Black "Hakobyan, Aram"]
[WhiteFideId "2804344"]
[BlackFideId "13306677"]
[WhiteElo "2504"]
[BlackElo "2584"]
[Result "0-1"]
[Round "06"]
[TimeControl "180+2"]
[Date "2023.04.25"]
[WhiteClock "0:00:07"]
[BlackClock "0:00:10"]

1. e4 {[%clk 0:03:00]}  g6 {[%clk 0:03:00]} 2. d4 {[%clk 0:03:00]}  Bg7 {[%clk 0:03:01]} 3. c4 {[%clk 0:02:59]}  d6 {[%clk 0:03:01]} 4. Nc3 {[%clk 0:03:00]}  c5 {[%clk 0:03:02]} 5. dxc5 {[%clk 0:02:59]}  Bxc3+ {[%clk 0:03:01]} 6. bxc3 {[%clk 0:02:59]}  dxc5 {[%clk 0:03:02]} 7. Qxd8+ {[%clk 0:02:59]}  Kxd8 {[%clk 0:03:03]} 8. Bf4 {[%clk 0:02:58]}  Nc6 {[%clk 0:02:57]} 9. O-O-O+ {[%clk 0:02:55]}  Ke8 {[%clk 0:02:54]} 10. e5 {[%clk 0:02:46]}  Bg4 {[%clk 0:02:37]} 11. Nf3 {[%clk 0:02:39]}  Bxf3 {[%clk 0:02:23]} 12. gxf3 {[%clk 0:02:40]}  e6 {[%clk 0:02:24]} 13. h4 {[%clk 0:02:37]}  h6 {[%clk 0:02:24]} 14. Bd3 {[%clk 0:02:22]}  Rd8 {[%clk 0:02:23]} 15. Be4 {[%clk 0:02:19]}  Nge7 {[%clk 0:02:18]} 16. Rd6 {[%clk 0:02:02]}  Kf8 {[%clk 0:02:17]} 17. Rhd1 {[%clk 0:01:59]}  Kg7 {[%clk 0:02:16]} 18. Rd7 {[%clk 0:01:56]}  Rxd7 {[%clk 0:02:01]} 19. Rxd7 {[%clk 0:01:56]}  Rb8 {[%clk 0:01:59]} 20. h5 {[%clk 0:01:41]}  gxh5 {[%clk 0:01:55]} 21. Bg3 {[%clk 0:01:41]}  Ng6 {[%clk 0:01:48]} 22. f4 {[%clk 0:01:29]}  h4 {[%clk 0:01:48]} 23. Bh2 {[%clk 0:01:30]}  Nce7 {[%clk 0:01:27]} 24. f5 {[%clk 0:01:18]}  exf5 {[%clk 0:01:13]} 25. Bd5 {[%clk 0:01:18]}  f4 {[%clk 0:01:10]} 26. e6 {[%clk 0:01:12]}  fxe6 {[%clk 0:01:09]} 27. Bxe6 {[%clk 0:01:07]}  Kf6 {[%clk 0:01:09]} 28. Bh3 {[%clk 0:01:00]}  a6 {[%clk 0:00:39]} 29. Kd1 {[%clk 0:00:46]}  b5 {[%clk 0:00:38]} 30. Rd6+ {[%clk 0:00:46]}  Kg7 {[%clk 0:00:37]} 31. Rxa6 {[%clk 0:00:45]}  bxc4 {[%clk 0:00:37]} 32. Kc2 {[%clk 0:00:45]}  h5 {[%clk 0:00:25]} 33. Ra5 {[%clk 0:00:43]}  Nd5 {[%clk 0:00:21]} 34. Rxc5 {[%clk 0:00:42]}  Nf6 {[%clk 0:00:21]} 35. Rc7+ {[%clk 0:00:36]}  Kh6 {[%clk 0:00:21]} 36. Rc6 {[%clk 0:00:36]}  Kg7 {[%clk 0:00:21]} 37. Bf5 {[%clk 0:00:26]}  Re8 {[%clk 0:00:13]} 38. Kd1 {[%clk 0:00:16]}  Re5 {[%clk 0:00:09]} 39. Bxg6 {[%clk 0:00:13]}  Kxg6 {[%clk 0:00:10]} 40. Bxf4 {[%clk 0:00:13]}  Rf5 {[%clk 0:00:09]} 41. Be3 {[%clk 0:00:07]}  h3 {[%clk 0:00:09]} 42. Rxc4 {[%clk 0:00:07]}  Ng4 {[%clk 0:00:10]} 43. Rc5 {[%clk 0:00:07]}  Nxe3+ {[%clk 0:00:10]} 0-1


[Site "https://www.chess.com"]

[Event "Titled Tuesday Blitz April 25 Early 2023"]
[White "Van Foreest, Jorden"]
[Black "Mirzoev, Azer"]
[WhiteFideId "1039784"]
[BlackFideId "13400304"]
[WhiteElo "2633"]
[BlackElo "2525"]
[Result "0-1"]
[Round "06"]
[TimeControl "180+2"]
[Date "2023.04.25"]
[WhiteClock "0:00:07"]
[BlackClock "0:00:07"]

1. e4 {[%clk 0:02:47]}  Nf6 {[%clk 0:03:00]} 2. e5 {[%clk 0:02:47]}  Nd5 {[%clk 0:03:00]} 3. d4 {[%clk 0:02:47]}  d6 {[%clk 0:03:00]} 4. Nf3 {[%clk 0:02:48]}  dxe5 {[%clk 0:03:00]} 5. Nxe5 {[%clk 0:02:49]}  c6 {[%clk 0:03:00]} 6. Bc4 {[%clk 0:02:48]}  Nd7 {[%clk 0:03:00]} 7. Nf3 {[%clk 0:02:48]}  N7f6 {[%clk 0:03:00]} 8. h3 {[%clk 0:02:47]}  Bf5 {[%clk 0:02:57]} 9. O-O {[%clk 0:02:48]}  e6 {[%clk 0:02:53]} 10. Re1 {[%clk 0:02:48]}  h6 {[%clk 0:02:48]} 11. a4 {[%clk 0:02:48]}  Be7 {[%clk 0:02:47]} 12. Bb3 {[%clk 0:02:44]}  O-O {[%clk 0:02:46]} 13. Nbd2 {[%clk 0:02:41]}  c5 {[%clk 0:02:45]} 14. Nc4 {[%clk 0:02:34]}  Rc8 {[%clk 0:02:42]} 15. Nce5 {[%clk 0:02:34]}  Bh7 {[%clk 0:02:38]} 16. c3 {[%clk 0:02:34]}  cxd4 {[%clk 0:02:29]} 17. Nxd4 {[%clk 0:02:30]}  Bc5 {[%clk 0:02:24]} 18. a5 {[%clk 0:02:19]}  a6 {[%clk 0:02:23]} 19. Ra4 {[%clk 0:02:19]}  Qc7 {[%clk 0:02:02]} 20. Qf3 {[%clk 0:02:18]}  Rfd8 {[%clk 0:01:52]} 21. Nxf7 {[%clk 0:02:07]}  Qxf7 {[%clk 0:01:48]} 22. Nxe6 {[%clk 0:02:06]}  Re8 {[%clk 0:01:41]} 23. Qe2 {[%clk 0:01:21]}  Kh8 {[%clk 0:00:42]} 24. Qe5 {[%clk 0:00:52]}  Bxf2+ {[%clk 0:00:25]} 25. Kxf2 {[%clk 0:00:32]}  Rxe6 {[%clk 0:00:22]} 26. Qxe6 {[%clk 0:00:16]}  Ne4+ {[%clk 0:00:20]} 27. Kg1 {[%clk 0:00:17]}  Qxe6 {[%clk 0:00:20]} 28. Rd4 {[%clk 0:00:18]}  Qf6 {[%clk 0:00:13]} 29. Rf1 {[%clk 0:00:16]}  Qe7 {[%clk 0:00:10]} 30. Bxd5 {[%clk 0:00:13]}  Nf6 {[%clk 0:00:10]} 31. Bf3 {[%clk 0:00:12]}  Rd8 {[%clk 0:00:10]} 32. Rb4 {[%clk 0:00:12]}  Rd7 {[%clk 0:00:10]} 33. Kh1 {[%clk 0:00:11]}  Bd3 {[%clk 0:00:09]} 34. Rg1 {[%clk 0:00:10]}  Bb5 {[%clk 0:00:09]} 35. Bf4 {[%clk 0:00:06]}  Bc6 {[%clk 0:00:09]} 36. Bxc6 {[%clk 0:00:06]}  bxc6 {[%clk 0:00:09]} 37. Bh2 {[%clk 0:00:07]}  Nd5 {[%clk 0:00:08]} 38. Rb8+ {[%clk 0:00:06]}  Kh7 {[%clk 0:00:08]} 39. Ra8 {[%clk 0:00:07]}  Qe2 {[%clk 0:00:08]} 40. Rxa6 {[%clk 0:00:07]}  Qxa6 {[%clk 0:00:07]} 0-1


[Site "https://www.chess.com"]

[Event "Titled Tuesday Blitz April 25 Early 2023"]
[White "Kuzubov, Yuriy"]
[Black "Shuvalova, Polina"]
[WhiteFideId "14112906"]
[BlackFideId "24171760"]
[WhiteElo "2496"]
[BlackElo "2281"]
[Result "1-0"]
[Round "06"]
[TimeControl "180+2"]
[Date "2023.04.25"]
[WhiteClock "0:00:22"]
[BlackClock "0:00:04"]

1. d4 {[%clk 0:02:55]}  Nf6 {[%clk 0:02:58]} 2. c4 {[%clk 0:02:55]}  e6 {[%clk 0:02:51]} 3. Nc3 {[%clk 0:02:55]}  d5 {[%clk 0:02:51]} 4. Nf3 {[%clk 0:02:54]}  c5 {[%clk 0:02:50]} 5. cxd5 {[%clk 0:02:54]}  Nxd5 {[%clk 0:02:51]} 6. e4 {[%clk 0:02:52]}  Nxc3 {[%clk 0:02:51]} 7. bxc3 {[%clk 0:02:53]}  cxd4 {[%clk 0:02:52]} 8. cxd4 {[%clk 0:02:54]}  Bb4+ {[%clk 0:02:53]} 9. Bd2 {[%clk 0:02:54]}  Bxd2+ {[%clk 0:02:53]} 10. Qxd2 {[%clk 0:02:55]}  O-O {[%clk 0:02:54]} 11. Bb5 {[%clk 0:02:49]}  b6 {[%clk 0:02:48]} 12. O-O {[%clk 0:02:48]}  Bb7 {[%clk 0:02:48]} 13. Rfe1 {[%clk 0:02:48]}  Nd7 {[%clk 0:02:44]} 14. a4 {[%clk 0:02:44]}  Nf6 {[%clk 0:02:41]} 15. Bd3 {[%clk 0:02:44]}  h6 {[%clk 0:02:37]} 16. h3 {[%clk 0:02:42]}  Qc7 {[%clk 0:02:26]} 17. a5 {[%clk 0:02:27]}  bxa5 {[%clk 0:02:21]} 18. Rxa5 {[%clk 0:02:24]}  Rfc8 {[%clk 0:02:17]} 19. Ne5 {[%clk 0:02:01]}  Qc3 {[%clk 0:02:11]} 20. Qxc3 {[%clk 0:01:58]}  Rxc3 {[%clk 0:02:11]} 21. f3 {[%clk 0:01:58]}  Bc8 {[%clk 0:01:33]} 22. Bb5 {[%clk 0:01:45]}  Rc7 {[%clk 0:01:26]} 23. Rea1 {[%clk 0:01:27]}  Bd7 {[%clk 0:01:11]} 24. Bd3 {[%clk 0:01:28]}  Be8 {[%clk 0:01:09]} 25. Kf2 {[%clk 0:01:26]}  g5 {[%clk 0:01:06]} 26. Ke3 {[%clk 0:01:21]}  Kg7 {[%clk 0:01:06]} 27. g4 {[%clk 0:01:07]}  Nd7 {[%clk 0:01:04]} 28. Nc4 {[%clk 0:01:06]}  Nf8 {[%clk 0:00:54]} 29. h4 {[%clk 0:00:55]}  gxh4 {[%clk 0:00:39]} 30. Rh1 {[%clk 0:00:54]}  a6 {[%clk 0:00:29]} 31. Nd6 {[%clk 0:00:44]}  Ng6 {[%clk 0:00:18]} 32. f4 {[%clk 0:00:38]}  Rd8 {[%clk 0:00:15]} 33. Nxe8+ {[%clk 0:00:30]}  Rxe8 {[%clk 0:00:16]} 34. f5 {[%clk 0:00:31]}  exf5 {[%clk 0:00:16]} 35. gxf5 {[%clk 0:00:31]}  Nf8 {[%clk 0:00:12]} 36. Rxh4 {[%clk 0:00:30]}  Nh7 {[%clk 0:00:12]} 37. Rxa6 {[%clk 0:00:27]}  f6 {[%clk 0:00:13]} 38. Rh1 {[%clk 0:00:20]}  Ng5 {[%clk 0:00:13]} 39. Rha1 {[%clk 0:00:21]}  Rce7 {[%clk 0:00:13]} 40. Ra7 {[%clk 0:00:21]}  h5 {[%clk 0:00:13]} 41. Rxe7+ {[%clk 0:00:20]}  Rxe7 {[%clk 0:00:14]} 42. Rh1 {[%clk 0:00:20]}  Kh6 {[%clk 0:00:14]} 43. Kf4 {[%clk 0:00:20]}  Rd7 {[%clk 0:00:09]} 44. d5 {[%clk 0:00:16]}  Nf7 {[%clk 0:00:09]} 45. Be2 {[%clk 0:00:16]}  Ne5 {[%clk 0:00:07]} 46. Bxh5 {[%clk 0:00:16]}  Kg7 {[%clk 0:00:07]} 47. Ra1 {[%clk 0:00:16]}  Rc7 {[%clk 0:00:06]} 48. Ke3 {[%clk 0:00:15]}  Rc3+ {[%clk 0:00:06]} 49. Kd4 {[%clk 0:00:15]}  Rc4+ {[%clk 0:00:06]} 50. Ke3 {[%clk 0:00:15]}  Rc3+ {[%clk 0:00:06]} 51. Kd2 {[%clk 0:00:15]}  Rd3+ {[%clk 0:00:06]} 52. Ke2 {[%clk 0:00:16]}  Rh3 {[%clk 0:00:06]} 53. Ra7+ {[%clk 0:00:15]}  Kh6 {[%clk 0:00:03]} 54. Bf7 {[%clk 0:00:15]}  Kg5 {[%clk 0:00:03]} 55. Be6 {[%clk 0:00:15]}  Kf4 {[%clk 0:00:04]} 56. Ra4 {[%clk 0:00:15]}  Re3+ {[%clk 0:00:04]} 57. Kd2 {[%clk 0:00:15]}  Rxe4 {[%clk 0:00:04]} 58. Rxe4+ {[%clk 0:00:14]}  Kxe4 {[%clk 0:00:05]} 59. d6 {[%clk 0:00:15]}  Nc6 {[%clk 0:00:05]} 60. d7 {[%clk 0:00:15]}  Nd8 {[%clk 0:00:05]} 61. Kc3 {[%clk 0:00:15]}  Ke5 {[%clk 0:00:05]} 62. Kc4 {[%clk 0:00:15]}  Kd6 {[%clk 0:00:06]} 63. Kd4 {[%clk 0:00:16]}  Nc6+ {[%clk 0:00:06]} 64. Kc4 {[%clk 0:00:16]}  Ne5+ {[%clk 0:00:06]} 65. Kd4 {[%clk 0:00:15]}  Nxd7 {[%clk 0:00:07]} 66. Bxd7 {[%clk 0:00:15]}  Kxd7 {[%clk 0:00:08]} 67. Kd5 {[%clk 0:00:16]}  Ke7 {[%clk 0:00:07]} 68. Kc6 {[%clk 0:00:17]}  Ke8 {[%clk 0:00:07]} 69. Kd6 {[%clk 0:00:17]}  Kd8 {[%clk 0:00:06]} 70. Ke6 {[%clk 0:00:17]}  Ke8 {[%clk 0:00:07]} 71. Kxf6 {[%clk 0:00:18]}  Kf8 {[%clk 0:00:07]} 72. Ke6 {[%clk 0:00:18]}  Ke8 {[%clk 0:00:06]} 73. f6 {[%clk 0:00:19]}  Kf8 {[%clk 0:00:07]} 74. f7 {[%clk 0:00:19]}  Kg7 {[%clk 0:00:05]} 75. Ke7 {[%clk 0:00:20]}  Kh7 {[%clk 0:00:06]} 76. f8=Q {[%clk 0:00:21]}  Kg6 {[%clk 0:00:05]} 77. Qf3 {[%clk 0:00:21]}  Kh7 {[%clk 0:00:05]} 78. Qg4 {[%clk 0:00:21]}  Kh8 {[%clk 0:00:04]} 79. Kf7 {[%clk 0:00:21]}  Kh7 {[%clk 0:00:04]} 80. Qh5# {[%clk 0:00:22]} 1-0


[Site "https://www.chess.com"]

[Event "Titled Tuesday Blitz April 25 Early 2023"]
[White "Lewicki, Miroslaw"]
[Black "Corrales Jimenez, Fidel"]
[WhiteFideId "1113380"]
[BlackFideId "3506690"]
[WhiteElo "2212"]
[BlackElo "2541"]
[Result "0-1"]
[Round "06"]
[TimeControl "180+2"]
[Date "2023.04.25"]
[WhiteClock "0:00:06"]
[BlackClock "0:00:42"]

1. g3 {[%clk 0:02:53]}  d5 {[%clk 0:02:56]} 2. Bg2 {[%clk 0:02:54]}  c6 {[%clk 0:02:56]} 3. Nf3 {[%clk 0:02:54]}  h6 {[%clk 0:02:57]} 4. O-O {[%clk 0:02:55]}  Bf5 {[%clk 0:02:57]} 5. d3 {[%clk 0:02:54]}  e6 {[%clk 0:02:57]} 6. Nbd2 {[%clk 0:02:53]}  Nf6 {[%clk 0:02:56]} 7. c3 {[%clk 0:02:52]}  Be7 {[%clk 0:02:56]} 8. Re1 {[%clk 0:02:52]}  O-O {[%clk 0:02:55]} 9. Qc2 {[%clk 0:02:53]}  a5 {[%clk 0:02:55]} 10. e4 {[%clk 0:02:52]}  dxe4 {[%clk 0:02:56]} 11. dxe4 {[%clk 0:02:52]}  Bh7 {[%clk 0:02:56]} 12. Qb3 {[%clk 0:02:47]}  b5 {[%clk 0:02:23]} 13. Nd4 {[%clk 0:02:32]}  Nfd7 {[%clk 0:02:19]} 14. e5 {[%clk 0:02:23]}  Nc5 {[%clk 0:02:07]} 15. Qd1 {[%clk 0:02:22]}  Ra6 {[%clk 0:02:01]} 16. Ne4 {[%clk 0:01:28]}  Nbd7 {[%clk 0:01:43]} 17. Nxc5 {[%clk 0:01:19]}  Bxc5 {[%clk 0:01:32]} 18. Nxc6 {[%clk 0:01:10]}  Rxc6 {[%clk 0:01:29]} 19. Bxc6 {[%clk 0:01:09]}  Qb6 {[%clk 0:01:30]} 20. Bxd7 {[%clk 0:00:51]}  Bxf2+ {[%clk 0:01:29]} 21. Kf1 {[%clk 0:00:44]}  Bxe1 {[%clk 0:01:28]} 22. Kxe1 {[%clk 0:00:27]}  Rd8 {[%clk 0:01:26]} 23. Qd6 {[%clk 0:00:25]}  Qg1+ {[%clk 0:01:00]} 24. Ke2 {[%clk 0:00:22]}  Qxh2+ {[%clk 0:00:59]} 25. Kf3 {[%clk 0:00:22]}  Qh1+ {[%clk 0:00:59]} 26. Kf2 {[%clk 0:00:21]}  Be4 {[%clk 0:00:48]} 27. Qe7 {[%clk 0:00:08]}  Qf3+ {[%clk 0:00:47]} 28. Ke1 {[%clk 0:00:07]}  Qxg3+ {[%clk 0:00:47]} 29. Ke2 {[%clk 0:00:08]}  Qd3+ {[%clk 0:00:46]} 30. Kf2 {[%clk 0:00:05]}  Rxd7 {[%clk 0:00:46]} 31. Qe8+ {[%clk 0:00:05]}  Kh7 {[%clk 0:00:46]} 32. Be3 {[%clk 0:00:05]}  Qc2+ {[%clk 0:00:42]} 33. Kg3 {[%clk 0:00:05]}  Qg2+ {[%clk 0:00:42]} 34. Kf4 {[%clk 0:00:06]}  Qf3# {[%clk 0:00:42]} 0-1


[Site "https://www.chess.com"]

[Event "Titled Tuesday Blitz April 25 Early 2023"]
[White "Henriquez Villagra, Cristobal"]
[Black "djokovic74"]
[WhiteFideId "3409350"]
[WhiteElo "2542"]
[BlackElo "2612"]
[Result "1/2-1/2"]
[Round "06"]
[TimeControl "180+2"]
[Date "2023.04.25"]
[WhiteClock "0:00:16"]
[BlackClock "0:00:02"]

1. e4 {[%clk 0:03:00]}  e6 {[%clk 0:02:59]} 2. Qe2 {[%clk 0:02:57]}  c5 {[%clk 0:02:59]} 3. Nf3 {[%clk 0:02:57]}  Nc6 {[%clk 0:02:58]} 4. g3 {[%clk 0:02:57]}  Nge7 {[%clk 0:02:58]} 5. Bg2 {[%clk 0:02:57]}  g6 {[%clk 0:02:58]} 6. O-O {[%clk 0:02:54]}  Bg7 {[%clk 0:02:58]} 7. h4 {[%clk 0:02:51]}  O-O {[%clk 0:02:55]} 8. h5 {[%clk 0:02:51]}  d5 {[%clk 0:02:55]} 9. d3 {[%clk 0:02:51]}  Qc7 {[%clk 0:02:40]} 10. Nc3 {[%clk 0:02:48]}  b6 {[%clk 0:02:37]} 11. Bf4 {[%clk 0:02:31]}  e5 {[%clk 0:02:19]} 12. Bg5 {[%clk 0:02:28]}  f6 {[%clk 0:01:46]} 13. Nxd5 {[%clk 0:02:16]}  Nxd5 {[%clk 0:01:44]} 14. exd5 {[%clk 0:02:17]}  Ne7 {[%clk 0:01:31]} 15. h6 {[%clk 0:01:36]}  Bh8 {[%clk 0:01:26]} 16. Nxe5 {[%clk 0:01:25]}  fxg5 {[%clk 0:00:56]} 17. d6 {[%clk 0:01:25]}  Qxd6 {[%clk 0:00:56]} 18. Nc4 {[%clk 0:01:26]}  Qc7 {[%clk 0:00:43]} 19. Bxa8 {[%clk 0:01:23]}  b5 {[%clk 0:00:38]} 20. Ne3 {[%clk 0:01:10]}  Bxb2 {[%clk 0:00:35]} 21. Rab1 {[%clk 0:01:08]}  Bd4 {[%clk 0:00:31]} 22. c3 {[%clk 0:01:07]}  Bxc3 {[%clk 0:00:26]} 23. Nd5 {[%clk 0:01:07]}  Nxd5 {[%clk 0:00:25]} 24. Bxd5+ {[%clk 0:01:08]}  Kh8 {[%clk 0:00:25]} 25. Rxb5 {[%clk 0:01:03]}  Bd4 {[%clk 0:00:24]} 26. Bg2 {[%clk 0:00:19]}  Qxg3 {[%clk 0:00:24]} 27. Rb2 {[%clk 0:00:18]}  Bh3 {[%clk 0:00:17]} 28. Qe4 {[%clk 0:00:15]}  Qxg2+ {[%clk 0:00:17]} 29. Qxg2 {[%clk 0:00:16]}  Bxg2 {[%clk 0:00:18]} 30. Kxg2 {[%clk 0:00:17]}  Bxb2 {[%clk 0:00:17]} 31. Rb1 {[%clk 0:00:17]}  Bd4 {[%clk 0:00:18]} 32. f3 {[%clk 0:00:18]}  Kg8 {[%clk 0:00:11]} 33. Rb7 {[%clk 0:00:18]}  Ra8 {[%clk 0:00:10]} 34. a4 {[%clk 0:00:18]}  a5 {[%clk 0:00:09]} 35. Kg3 {[%clk 0:00:19]}  Be5+ {[%clk 0:00:06]} 36. Kg4 {[%clk 0:00:19]}  Bf4 {[%clk 0:00:06]} 37. Rg7+ {[%clk 0:00:19]}  Kh8 {[%clk 0:00:06]} 38. Rd7 {[%clk 0:00:20]}  Rf8 {[%clk 0:00:04]} 39. Ra7 {[%clk 0:00:19]}  Bd2 {[%clk 0:00:04]} 40. Rc7 {[%clk 0:00:18]}  Rf4+ {[%clk 0:00:03]} 41. Kg3 {[%clk 0:00:17]}  Kg8 {[%clk 0:00:02]} 42. Rg7+ {[%clk 0:00:16]}  Kh8 {[%clk 0:00:02]} 43. Rc7 {[%clk 0:00:17]}  Kg8 {[%clk 0:00:02]} 44. Rg7+ {[%clk 0:00:17]}  Kh8 {[%clk 0:00:02]} 45. Rc7 {[%clk 0:00:16]} 1/2-1/2


[Site "https://www.chess.com"]

[Event "Titled Tuesday Blitz April 25 Early 2023"]
[White "Golichenko, Ilija"]
[Black "Lenderman, Aleksandr"]
[WhiteFideId "14117223"]
[BlackFideId "2021285"]
[WhiteElo "2339"]
[BlackElo "2607"]
[Result "0-1"]
[Round "06"]
[TimeControl "180+2"]
[Date "2023.04.25"]
[WhiteClock "0:00:04"]
[BlackClock "0:01:54"]

1. d4 {[%clk 0:03:00]}  e6 {[%clk 0:02:43]} 2. c4 {[%clk 0:02:58]}  b6 {[%clk 0:02:43]} 3. e4 {[%clk 0:02:51]}  Bb4+ {[%clk 0:02:42]} 4. Bd2 {[%clk 0:02:50]}  Bxd2+ {[%clk 0:02:42]} 5. Nxd2 {[%clk 0:02:50]}  Bb7 {[%clk 0:02:38]} 6. f3 {[%clk 0:02:49]}  Qf6 {[%clk 0:02:36]} 7. Nb3 {[%clk 0:02:38]}  a5 {[%clk 0:02:36]} 8. Qd2 {[%clk 0:02:35]}  a4 {[%clk 0:02:36]} 9. Nc1 {[%clk 0:02:35]}  a3 {[%clk 0:02:34]} 10. b3 {[%clk 0:02:31]}  c5 {[%clk 0:02:34]} 11. Nge2 {[%clk 0:02:29]}  Nc6 {[%clk 0:02:34]} 12. e5 {[%clk 0:02:28]}  Qh4+ {[%clk 0:02:33]} 13. g3 {[%clk 0:02:27]}  Qh5 {[%clk 0:02:33]} 14. Bg2 {[%clk 0:02:25]}  Nxd4 {[%clk 0:02:24]} 15. Nxd4 {[%clk 0:02:24]}  Qxe5+ {[%clk 0:02:22]} 16. Nce2 {[%clk 0:02:24]}  cxd4 {[%clk 0:02:21]} 17. Qxd4 {[%clk 0:02:22]}  Qxd4 {[%clk 0:02:19]} 18. Nxd4 {[%clk 0:02:23]}  Nf6 {[%clk 0:02:19]} 19. O-O-O {[%clk 0:02:00]}  Ke7 {[%clk 0:02:19]} 20. Rhe1 {[%clk 0:01:49]}  g6 {[%clk 0:02:18]} 21. Bh1 {[%clk 0:01:41]}  Rhc8 {[%clk 0:02:17]} 22. Kb1 {[%clk 0:01:39]}  d5 {[%clk 0:02:16]} 23. f4 {[%clk 0:01:37]}  Rab8 {[%clk 0:02:17]} 24. Nb5 {[%clk 0:01:34]}  Ba6 {[%clk 0:02:12]} 25. Nxa3 {[%clk 0:01:15]}  dxc4 {[%clk 0:02:12]} 26. bxc4 {[%clk 0:01:13]}  Bxc4 {[%clk 0:02:13]} 27. Rc1 {[%clk 0:01:09]}  Bd5 {[%clk 0:02:10]} 28. Bxd5 {[%clk 0:01:02]}  Nxd5 {[%clk 0:02:11]} 29. Kb2 {[%clk 0:01:00]}  Nb4 {[%clk 0:02:10]} 30. Kb3 {[%clk 0:00:57]}  Nd3 {[%clk 0:02:08]} 31. Rxc8 {[%clk 0:00:55]}  Rxc8 {[%clk 0:02:09]} 32. Rd1 {[%clk 0:00:54]}  Nc5+ {[%clk 0:02:10]} 33. Kb4 {[%clk 0:00:52]}  Ra8 {[%clk 0:02:10]} 34. Nc4 {[%clk 0:00:46]}  Rxa2 {[%clk 0:02:09]} 35. Nxb6 {[%clk 0:00:44]}  Na6+ {[%clk 0:02:07]} 36. Kb5 {[%clk 0:00:37]}  Nc7+ {[%clk 0:02:07]} 37. Kc6 {[%clk 0:00:36]}  Rc2+ {[%clk 0:02:07]} 38. Kb7 {[%clk 0:00:35]}  Nd5 {[%clk 0:02:08]} 39. Nxd5+ {[%clk 0:00:32]}  exd5 {[%clk 0:02:09]} 40. Rxd5 {[%clk 0:00:32]}  Rxh2 {[%clk 0:02:09]} 41. Kc6 {[%clk 0:00:23]}  Rc2+ {[%clk 0:02:08]} 42. Kb5 {[%clk 0:00:22]}  h5 {[%clk 0:02:05]} 43. f5 {[%clk 0:00:18]}  Rc3 {[%clk 0:02:02]} 44. fxg6 {[%clk 0:00:17]}  fxg6 {[%clk 0:02:03]} 45. g4 {[%clk 0:00:12]}  hxg4 {[%clk 0:01:58]} 46. Rg5 {[%clk 0:00:11]}  Kf6 {[%clk 0:01:56]} 47. Rxg4 {[%clk 0:00:11]}  Kf5 {[%clk 0:01:57]} 48. Rg1 {[%clk 0:00:06]}  g5 {[%clk 0:01:57]} 49. Kb4 {[%clk 0:00:04]}  Rc8 {[%clk 0:01:54]} 0-1


[Site "https://www.chess.com"]